fUSD/lending_fUSD_20250510
["ID","MTS","AMOUNT","RATE_DAILY","PERIOD"]
[360665631,1746921047941,-400.0,0.00019744,2]
[360665633,1746921047950,-400.0,0.00019744,2]
[360665635,1746921047959,-400.0,0.00019744,2]
[360665637,1746921047968,-400.0,0.00019744,2]
[360665639,1746921047978,-400.0,0.00019744,2]
[360665641,1746921047987,-400.0,0.00019744,2]
[360665643,1746921047997,-185.84,0.00019744,2]
[360665645,1746921048006,-400.0,0.00019744,2]
[360665647,1746921048016,-400.0,0.00019744,2]
[360665649,1746921048025,-807.57,0.00019744,2]
[360665651,1746921048035,-450.28,0.00019744,2]
[360665653,1746921048044,-400.0,0.00019744,2]
[360665655,1746921048053,-400.0,0.00019744,2]
[360665657,1746921048063,-400.0,0.00019744,2]
[360665659,1746921048073,-724.04,0.00019744,2]
[360665661,1746921048083,-400.0,0.00019744,2]
[360665663,1746921048092,-400.0,0.00019744,2]
[360665665,1746921048101,-727.82,0.00019744,2]
[360665667,1746921048111,-713.25,0.00019744,2]
[360665669,1746921048120,-400.0,0.00019744,2]
[360665671,1746921048129,-9473.67416594,0.00019744,2]
[360665673,1746921048138,-965.83,0.00019744,2]
[360665675,1746921048147,-400.0,0.00019744,2]
[360665677,1746921048156,-400.0,0.00019744,2]
[360665679,1746921048166,-297.63495635,0.00019744,2]
[360665681,1746921048175,-485.22,0.00019744,2]
[360665683,1746921048185,-400.0,0.00019744,2]
[360665685,1746921048194,-668.86,0.00019744,2]
[360665687,1746921048203,-400.0,0.00019744,2]
[360665689,1746921048212,-400.0,0.00019744,2]
[360665691,1746921048221,-189.49780688,0.00019744,2]
[360665693,1746921048230,-400.0,0.00019744,2]
[360665694,1746921048239,-675.74,0.00019744,2]
[360665696,1746921048248,-400.0,0.00019744,2]
[360665698,1746921048258,-400.0,0.00019744,2]
[360665700,1746921048267,-400.0,0.00019744,2]
[360665702,1746921048276,-400.0,0.00019744,2]
[360665704,1746921048286,-400.0,0.00019744,2]
[360665706,1746921048295,-400.0,0.00019744,2]
[360665708,1746921048305,-576.34,0.00019744,2]
[360665710,1746921048314,-400.0,0.00019744,2]
[360665712,1746921048324,-662.5,0.00019744,2]
[360665714,1746921048334,-500.0,0.00019744,2]
[360665716,1746921048344,-400.0,0.00019744,2]
[360665718,1746921048354,-400.0,0.00019744,2]
[360665720,1746921048363,-400.0,0.00019744,2]
[360665722,1746921048373,-400.0,0.00019744,2]
[360665724,1746921048382,-400.0,0.00019744,2]
[360665726,1746921048392,-400.0,0.00019744,2]
[360665728,1746921048401,-400.0,0.00019744,2]
[360665730,1746921048411,-400.0,0.00019744,2]
[360665732,1746921048420,-652.75,0.00019744,2]
[360665734,1746921048429,-400.0,0.00019744,2]
[360665736,1746921048438,-500.0,0.00019744,2]
[360665738,1746921048447,-1914.15,0.00019744,2]
[360665740,1746921048457,-400.0,0.00019744,2]
[360665742,1746921048466,-400.0,0.00019744,2]
[360665744,1746921048476,-400.0,0.00019744,2]
[360665746,1746921048485,-400.0,0.00019744,2]
[360665748,1746921048494,-939.42,0.00019744,2]
[360665750,1746921048503,-400.0,0.00019744,2]
[360665752,1746921048512,-400.0,0.00019744,2]
[360665754,1746921048521,-166.53748789,0.00019744,2]
[360665756,1746921048530,-710.25,0.00019744,2]
[360665758,1746921048539,-477.71,0.00019744,2]
[360665760,1746921048549,-400.0,0.00019744,2]
[360665762,1746921048558,-400.0,0.00019744,2]
[360665764,1746921048567,-175.2,0.00019744,2]
[360665766,1746921048577,-400.0,0.00019744,2]
[360665768,1746921048587,-400.0,0.00019744,2]
[360665769,1746921048597,-400.0,0.00019744,2]
[360665771,1746921048606,-400.0,0.00019744,2]
[360665773,1746921048616,-1454.44,0.00019744,2]
[360665775,1746921048625,-400.0,0.00019744,2]
[360665777,1746921048635,-400.0,0.00019744,2]
[360665779,1746921048644,-400.0,0.00019744,2]
[360665781,1746921048654,-400.0,0.00019744,2]
[360665783,1746921048663,-400.0,0.00019745,2]
[360665785,1746921048673,-400.0,0.00019745,2]
[360665787,1746921048682,-510.62183016,0.00019745,2]
[360665789,1746921048692,-511.64626245,0.00019745,2]
[360665791,1746921048701,-503.05517386,0.00019745,2]
[360665793,1746921048710,-513.26390279,0.00019745,2]
[360665795,1746921048719,-502.24223806,0.00019745,2]
[360665797,1746921048731,-523.83923653,0.00019745,2]
[360665799,1746921048740,-400.0,0.00019745,2]
[360665801,1746921048749,-400.43398241,0.00019745,2]
[360665803,1746921048759,-502.46336438,0.00019745,2]
[360665805,1746921048769,-321.94458042,0.00019745,2]
[360665807,1746921048779,-160.03342752,0.00019745,2]
[360665809,1746921048788,-400.0,0.00019745,2]
[360665811,1746921048797,-400.0,0.00019745,2]
[360665813,1746921048806,-400.0,0.00019745,2]
[360665815,1746921048815,-400.0,0.00019745,2]
[360665817,1746921048825,-413.9,0.00019745,2]
[360665819,1746921048835,-400.0,0.00019745,2]
[360665821,1746921048844,-400.0,0.00019745,2]
[360665823,1746921048854,-400.0,0.00019745,2]
[360665825,1746921048864,-500.0,0.00019745,2]
[360665827,1746921048874,-400.0,0.00019745,2]
[360665829,1746921048884,-400.0,0.00019745,2]
[360665831,1746921048893,-400.0,0.00019745,2]
[360665833,1746921048903,-611.91,0.00019745,2]
[360665835,1746921048913,-400.0,0.00019745,2]
[360665837,1746921048923,-400.0,0.00019745,2]
[360665839,1746921048932,-400.0,0.00019745,2]
[360665841,1746921048946,-400.0,0.00019745,2]
[360665843,1746921048956,-400.0,0.00019745,2]
[360665845,1746921048967,-400.0,0.00019745,2]
[360665847,1746921048976,-400.0,0.00019745,2]
[360665849,1746921048987,-400.0,0.00019745,2]
[360665851,1746921048997,-400.0,0.00019745,2]
[360665853,1746921049007,-400.0,0.00019745,2]
[360665855,1746921049017,-400.0,0.00019745,2]
[360665857,1746921049028,-400.0,0.00019745,2]
[360665859,1746921049038,-400.0,0.00019745,2]
[360665861,1746921049048,-400.0,0.00019745,2]
[360665864,1746921049058,-239.67421768,0.00019745,2]
[360665866,1746921049069,-400.0,0.00019745,2]
[360665868,1746921049080,-400.0,0.00019745,2]
[360665869,1746921049091,-400.0,0.00019745,2]
[360665871,1746921049100,-400.0,0.00019745,2]
[360665873,1746921049111,-400.0,0.00019745,2]
[360665875,1746921049122,-400.0,0.00019745,2]
[360665877,1746921049133,-493.37,0.00019745,2]
[360665879,1746921049142,-400.0,0.00019745,2]
[360665881,1746921049152,-268.59758637,0.00019745,2]
[360665883,1746921049162,-400.0,0.00019745,2]
[360665885,1746921049173,-400.0,0.00019745,2]
[360665888,1746921049184,-400.0,0.00019745,2]
[360665889,1746921049194,-400.0,0.00019745,2]
[360665892,1746921049205,-400.0,0.00019745,2]
[360665893,1746921049215,-400.0,0.00019745,2]
[360665895,1746921049226,-400.0,0.00019745,2]
[360665898,1746921049237,-400.0,0.00019745,2]
[360665900,1746921049247,-400.0,0.00019745,2]
[360665901,1746921049256,-400.0,0.00019745,2]
[360665903,1746921049266,-500.0,0.00019745,2]
[360665905,1746921049277,-400.0,0.00019745,2]
[360665908,1746921049288,-400.0,0.00019745,2]
[360665909,1746921049298,-400.0,0.00019745,2]
[360665911,1746921049308,-400.0,0.00019745,2]
[360665914,1746921049318,-400.0,0.00019745,2]
[360665915,1746921049329,-400.0,0.00019745,2]
[360665917,1746921049338,-400.0,0.00019745,2]
[360665919,1746921049349,-400.0,0.00019745,2]
[360665921,1746921049358,-400.0,0.00019745,2]
[360665923,1746921049369,-400.0,0.00019745,2]
[360665925,1746921049379,-400.0,0.00019745,2]
[360665927,1746921049390,-400.0,0.00019745,2]
[360665929,1746921049400,-400.0,0.00019745,2]
[360665931,1746921049410,-400.0,0.00019745,2]
[360665933,1746921049420,-400.0,0.00019745,2]
[360665935,1746921049431,-400.0,0.00019745,2]
[360665937,1746921049441,-400.0,0.00019745,2]
[360665939,1746921049450,-400.0,0.00019745,2]
[360665941,1746921049460,-400.0,0.00019745,2]
[360665943,1746921049470,-400.0,0.00019745,2]
[360665945,1746921049479,-439.95,0.00019745,2]
[360665947,1746921049490,-400.0,0.00019745,2]
[360665949,1746921049500,-400.0,0.00019745,2]
[360665951,1746921049510,-489.59,0.00019745,2]
[360665953,1746921049521,-400.0,0.00019745,2]
[360665955,1746921049530,-400.0,0.00019745,2]
[360665957,1746921049540,-400.0,0.00019745,2]
[360665959,1746921049550,-427.86,0.00019745,2]
[360665961,1746921049560,-400.0,0.00019745,2]
[360665963,1746921049572,-625.93,0.00019745,2]
[360665965,1746921049582,-400.0,0.00019745,2]
[360665967,1746921049592,-400.0,0.00019745,2]
[360665969,1746921049602,-400.0,0.00019745,2]
[360665971,1746921049612,-400.0,0.00019745,2]
[360665973,1746921049623,-400.0,0.00019745,2]
[360665975,1746921049633,-400.0,0.00019745,2]
[360665976,1746921049643,-557.07,0.00019745,2]
[360665977,1746921049653,-400.0,0.00019745,2]
[360665978,1746921049663,-400.0,0.00019745,2]
[360665979,1746921049673,-400.0,0.00019745,2]
[360665980,1746921049682,-208.00856755,0.00019745,2]
[360665981,1746921049692,-400.0,0.00019745,2]
[360665982,1746921049702,-400.0,0.00019745,2]
[360665983,1746921049711,-400.0,0.00019745,2]
[360665984,1746921049722,-400.0,0.00019745,2]
[360665985,1746921049732,-383.34,0.00019745,2]
[360665986,1746921049742,-400.0,0.00019745,2]
[360665987,1746921049751,-400.0,0.00019745,2]
[360665988,1746921049761,-400.0,0.00019745,2]
[360665990,1746921049771,-942.19,0.00019745,2]
[360665991,1746921049780,-400.0,0.00019745,2]
[360665993,1746921049790,-400.0,0.00019745,2]
[360665995,1746921049800,-400.0,0.00019745,2]
[360665997,1746921049810,-400.0,0.00019745,2]
[360665999,1746921049820,-503.59687382,0.00019745,2]
[360666001,1746921049830,-400.0,0.00019745,2]
[360666003,1746921049842,-400.0,0.00019745,2]
[360666005,1746921049851,-400.0,0.00019745,2]
[360666007,1746921049861,-400.0,0.00019745,2]
[360666009,1746921049871,-400.0,0.00019745,2]
[360666011,1746921049881,-300.0,0.00019745,2]
[360666013,1746921049891,-400.0,0.00019745,2]
[360666015,1746921049900,-400.0,0.00019745,2]
[360666017,1746921049910,-400.0,0.00019745,2]
[360666019,1746921049919,-400.0,0.00019745,2]
[360666021,1746921049929,-400.0,0.00019745,2]
[360666023,1746921049942,-400.0,0.00019745,2]
[360666025,1746921049951,-650.39,0.00019745,2]
[360666027,1746921049961,-400.0,0.00019745,2]
[360666029,1746921049972,-400.0,0.00019745,2]
[360666031,1746921049983,-400.0,0.00019745,2]
[360666033,1746921049992,-400.0,0.00019745,2]
[360666035,1746921050002,-400.0,0.00019745,2]
[360666037,1746921050013,-400.0,0.00019745,2]
[360666039,1746921050022,-601.51,0.00019745,2]
[360666041,1746921050032,-400.0,0.00019745,2]
[360666043,1746921050041,-400.0,0.00019745,2]
[360666045,1746921050050,-716.73,0.00019745,2]
[360666047,1746921050060,-400.0,0.00019745,2]
[360666049,1746921050070,-400.0,0.00019745,2]
[360666051,1746921050084,-402.62104245,0.00019745,2]
[360666054,1746921050095,-400.0,0.00019745,2]
[360666056,1746921050106,-400.0,0.00019745,2]
[360666058,1746921050116,-400.0,0.00019745,2]
[360666060,1746921050126,-400.0,0.00019745,2]
[360666062,1746921050136,-400.0,0.00019745,2]
[360666064,1746921050146,-400.0,0.00019745,2]
[360666066,1746921050156,-400.0,0.00019745,2]
[360666068,1746921050166,-400.0,0.00019745,2]
[360666070,1746921050177,-659.23,0.00019745,2]
[360666072,1746921050188,-400.0,0.00019745,2]
[360666074,1746921050198,-400.0,0.00019745,2]
[360666076,1746921050208,-269.46181157,0.00019745,2]
[360666078,1746921050218,-400.0,0.00019745,2]
[360666080,1746921050228,-400.0,0.00019745,2]
[360666082,1746921050238,-400.0,0.00019745,2]
[360666084,1746921050248,-400.0,0.00019745,2]
[360666086,1746921050258,-400.0,0.00019745,2]
[360666088,1746921050268,-400.0,0.00019745,2]
[360666090,1746921050278,-400.0,0.00019745,2]
[360666093,1746921050288,-400.0,0.00019745,2]
[360666095,1746921050297,-400.0,0.00019745,2]
[360666097,1746921050307,-400.0,0.00019745,2]
[360666099,1746921050317,-400.0,0.00019745,2]
[360666101,1746921050328,-400.0,0.00019745,2]
[360666103,1746921050338,-400.0,0.00019745,2]
[360666105,1746921050347,-677.04,0.00019745,2]
[360666107,1746921050357,-355.90257969,0.00019745,2]
[360666109,1746921050367,-400.0,0.00019745,2]
[360666111,1746921050378,-400.0,0.00019745,2]
[360666113,1746921050388,-155.9309323,0.00019745,2]
[360666115,1746921050399,-363.07,0.00019745,2]
[360666118,1746921050408,-400.0,0.00019745,2]
[360666120,1746921050418,-400.0,0.00019745,2]
[360666122,1746921050428,-400.0,0.00019745,2]
[360666124,1746921050437,-400.0,0.00019745,2]
[360666126,1746921050447,-400.0,0.00019745,2]
[360666128,1746921050457,-400.0,0.00019745,2]
[360666130,1746921050466,-400.0,0.00019745,2]
[360666132,1746921050476,-400.0,0.00019745,2]
[360666134,1746921050485,-400.0,0.00019745,2]
[360666136,1746921050495,-400.0,0.00019745,2]
[360666138,1746921050504,-400.0,0.00019745,2]
[360666140,1746921050514,-400.0,0.00019745,2]
[360666142,1746921050523,-400.0,0.00019745,2]
[360666144,1746921050533,-400.0,0.00019745,2]
[360666146,1746921050543,-400.0,0.00019745,2]
[360666148,1746921050553,-500.0,0.00019745,2]
[360666150,1746921050562,-400.0,0.00019745,2]
[360666152,1746921050573,-400.0,0.00019745,2]
[360666154,1746921050583,-400.0,0.00019745,2]
[360666156,1746921050592,-400.0,0.00019745,2]
[360666158,1746921050602,-400.0,0.00019745,2]
[360666160,1746921050612,-400.0,0.00019745,2]
[360666162,1746921050621,-400.0,0.00019745,2]
[360666165,1746921050631,-400.0,0.00019745,2]
[360666167,1746921050640,-400.0,0.00019745,2]
[360666169,1746921050650,-400.0,0.00019745,2]
[360666171,1746921050660,-400.0,0.00019745,2]
[360666173,1746921050669,-400.0,0.00019745,2]
[360666175,1746921050679,-400.0,0.00019745,2]
[360666177,1746921050689,-400.0,0.00019745,2]
[360666179,1746921050699,-400.0,0.00019745,2]
[360666181,1746921050708,-400.0,0.00019745,2]
[360666183,1746921050719,-400.0,0.00019745,2]
[360666185,1746921050729,-400.0,0.00019745,2]
[360666187,1746921050739,-400.0,0.00019745,2]
[360666189,1746921050748,-400.0,0.00019745,2]
[360666191,1746921050758,-400.0,0.00019745,2]
[360666193,1746921050768,-400.0,0.00019745,2]
[360666195,1746921050778,-500.0,0.00019745,2]
[360666197,1746921050788,-400.0,0.00019745,2]
[360666199,1746921050797,-400.0,0.00019745,2]
[360666201,1746921050807,-400.0,0.00019745,2]
[360666203,1746921050817,-400.0,0.00019745,2]
[360666206,1746921050829,-400.0,0.00019745,2]
[360666208,1746921050839,-400.0,0.00019745,2]
[360666210,1746921050848,-400.0,0.00019745,2]
[360666212,1746921050858,-400.0,0.00019745,2]
[360666214,1746921050868,-409.09,0.00019745,2]
[360666216,1746921050878,-400.0,0.00019745,2]
[360666218,1746921050888,-400.0,0.00019745,2]
[360666220,1746921050897,-400.0,0.00019745,2]
[360666222,1746921050908,-167.98493622,0.00019751,2]
[360666224,1746921050917,-2461.43501993,0.00019753,2]
[360666226,1746921050928,-150.0,0.00019756,2]
[360666228,1746921050940,-150.0,0.0001976,2]
[360666230,1746921050951,-150.0,0.00019763,2]
[360666232,1746921050960,-288.17669469,0.00019773,2]
[360666234,1746921050970,-500.0,0.00019773,2]
[360666236,1746921050980,-354.52000605,0.00019773,2]
[360666238,1746921050990,-500.0,0.00019773,2]
[360666240,1746921051000,-150.0,0.00019775,2]
[360666242,1746921051009,-250.0,0.0001978,2]
[360666245,1746921051022,-167.98493622,0.00019781,2]
[360666247,1746921051033,-250.0,0.00019781,2]
[360666249,1746921051043,-2461.43501993,0.00019783,2]
[360666268,1746921051231,-156.82515075,0.00019783,2]
[360666269,1746921051241,-150.0,0.00019789,2]
[360666271,1746921051252,-175.0988715,0.00019794,2]
[360666273,1746921051261,-200.0,0.00019796,2]
[360666274,1746921051271,-9473.67416594,0.00019796,2]
[360666276,1746921051280,-1503.0,0.000198,7]
[360666278,1746921051290,-3014.0,0.000198,2]
[360666280,1746921051299,-1453.0,0.000198,2]
[360666281,1746921051309,-236.0,0.000198,2]
[360666283,1746921051318,-374.0,0.000198,2]
[360666285,1746921051329,-765.0,0.000198,2]
[360666287,1746921051339,-4346.93976817,0.000198,2]
[360666288,1746921051349,-150.0,0.00019808,2]
[360666290,1746921051358,-167.98493622,0.00019811,2]
[360666292,1746921051368,-2461.43501993,0.00019812,2]
[360666294,1746921051378,-300.0,0.00019812,2]
[360666296,1746921051387,-150.0,0.00019813,2]
[360666297,1746921051397,-175.0988715,0.00019821,2]
[360666299,1746921051406,-150.0,0.00019836,2]
[360666301,1746921051416,-167.98493622,0.0001984,2]
[360666303,1746921051425,-2461.43501993,0.00019841,2]
[360666304,1746921051435,-156.82515074,0.00019842,2]
[360666306,1746921051444,-400.0,0.00019846,2]
[360666308,1746921051454,-400.0,0.00019846,2]
[360666310,1746921051463,-175.0988715,0.00019847,2]
[360666312,1746921051472,-12500.0,0.00019847,2]
[360666313,1746921051482,-9473.67416594,0.00019847,2]
[360666315,1746921051491,-215.0738,0.0001985,2]
[360666317,1746921051500,-12500.0,0.00019856,2]
[360666319,1746921051512,-1047.644,0.00019857,2]
[360666320,1746921051522,-305.7,0.00019858,2]
[360666322,1746921051531,-300.87,0.00019858,2]
[360666324,1746921051541,-303.28,0.00019858,2]
[360666326,1746921051550,-303.56,0.00019858,2]
[360666327,1746921051559,-302.99,0.00019858,2]
[360666329,1746921051569,-150.0,0.00019863,2]
[360666331,1746921051581,-12500.0,0.00019865,2]
[360666333,1746921051590,-2461.43501993,0.0001987,2]
[360666335,1746921051599,-1000.0,0.0001987,2]
[360666337,1746921051608,-1000.0,0.0001987,2]
[360666338,1746921051617,-891.10037912,0.0001987,2]
[360666340,1746921051628,-167.98493622,0.0001987,2]
[360666342,1746921051637,-500.0,0.00019873,2]
[360666344,1746921051647,-160.6846534,0.00019873,2]
[360666346,1746921051656,-500.0,0.00019873,2]
[360666348,1746921051666,-500.0,0.00019873,2]
[360666349,1746921051675,-500.0,0.00019873,2]
[360666351,1746921051685,-160.57086387,0.00019873,2]
[360666353,1746921051695,-500.0,0.00019873,2]
[360666355,1746921051704,-175.0988715,0.00019874,2]
[360666357,1746921051714,-12500.0,0.00019874,2]
[360666358,1746921051723,-150.0,0.00019878,2]
[360666360,1746921051732,-12500.0,0.00019882,2]
[360666362,1746921051742,-12500.0,0.00019882,2]
[360666364,1746921051751,-400.0,0.00019883,2]
[360666366,1746921051761,-400.0,0.00019883,2]
[360666368,1746921051771,-400.0,0.00019883,2]
[360666369,1746921051780,-150.8842483,0.00019883,2]
[360666371,1746921051789,-400.0,0.00019883,2]
[360666373,1746921051799,-1049.65,0.00019883,2]
[360666375,1746921051809,-400.0,0.00019883,2]
[360666377,1746921051819,-170.1,0.00019883,2]
[360666379,1746921051829,-400.0,0.00019883,2]
[360666380,1746921051839,-400.0,0.00019883,2]
[360666382,1746921051848,-511.99,0.00019883,2]
[360666384,1746921051859,-400.0,0.00019883,2]
[360666386,1746921051869,-400.0,0.00019883,2]
[360666388,1746921051878,-400.0,0.00019883,2]
[360666390,1746921051888,-400.0,0.00019883,2]
[360666392,1746921051897,-400.0,0.00019883,2]
[360666393,1746921051906,-400.0,0.00019883,2]
[360666395,1746921051919,-520.16,0.00019883,2]
[360666397,1746921051928,-400.0,0.00019883,2]
[360666399,1746921051939,-446.04,0.00019883,2]
[360666401,1746921051950,-400.0,0.00019883,2]
[360666403,1746921051960,-400.0,0.00019883,2]
[360666404,1746921051969,-400.0,0.00019883,2]
[360666406,1746921051979,-400.0,0.00019883,2]
[360666408,1746921051988,-400.0,0.00019883,2]
[360666410,1746921051999,-400.0,0.00019883,2]
[360666412,1746921052008,-400.0,0.00019883,2]
[360666414,1746921052019,-400.0,0.00019883,2]
[360666415,1746921052029,-400.0,0.00019883,2]
[360666417,1746921052039,-400.0,0.00019883,2]
[360666419,1746921052048,-400.0,0.00019883,2]
[360666421,1746921052057,-400.0,0.00019883,2]
[360666423,1746921052067,-400.0,0.00019883,2]
[360666425,1746921052077,-400.0,0.00019883,2]
[360666426,1746921052087,-400.0,0.00019883,2]
[360666428,1746921052097,-400.0,0.00019883,2]
[360666430,1746921052107,-400.0,0.00019883,2]
[360666432,1746921052116,-518.24390843,0.00019883,2]
[360666434,1746921052126,-400.0,0.00019883,2]
[360666436,1746921052135,-400.0,0.00019883,2]
[360666437,1746921052144,-448.0,0.00019883,2]
[360666439,1746921052154,-400.0,0.00019883,2]
[360666441,1746921052163,-400.0,0.00019883,2]
[360666443,1746921052172,-400.0,0.00019883,2]
[360666444,1746921052181,-400.0,0.00019883,2]
[360666446,1746921052191,-400.0,0.00019883,2]
[360666448,1746921052201,-10065.75,0.00019883,2]
[360666450,1746921052211,-255.35,0.00019883,2]
[360666452,1746921052220,-578.34,0.00019883,2]
[360666453,1746921052230,-400.0,0.00019883,2]
[360666455,1746921052239,-400.0,0.00019883,2]
[360666457,1746921052249,-400.0,0.00019883,2]
[360666459,1746921052258,-400.0,0.00019883,2]
[360666461,1746921052268,-400.0,0.00019883,2]
[360666462,1746921052277,-276.75,0.00019883,2]
[360666464,1746921052286,-400.0,0.00019883,2]
[360666466,1746921052295,-775.38,0.00019883,2]
[360666468,1746921052304,-400.0,0.00019883,2]
[360666470,1746921052314,-400.0,0.00019883,2]
[360666472,1746921052325,-400.0,0.00019883,2]
[360666473,1746921052334,-748.68,0.00019883,2]
[360666475,1746921052344,-400.0,0.00019883,2]
[360666477,1746921052354,-400.0,0.00019883,2]
[360666479,1746921052364,-400.0,0.00019883,2]
[360666481,1746921052376,-474.33,0.00019883,2]
[360666483,1746921052385,-531.9,0.00019883,2]
[360666485,1746921052395,-400.0,0.00019883,2]
[360666487,1746921052405,-400.0,0.00019883,2]
[360666488,1746921052414,-400.0,0.00019883,2]
[360666490,1746921052425,-400.0,0.00019883,2]
[360666492,1746921052434,-400.0,0.00019883,2]
[360666494,1746921052444,-905.71,0.00019883,2]
[360666496,1746921052453,-400.0,0.00019883,2]
[360666498,1746921052463,-400.0,0.00019883,2]
[360666500,1746921052472,-400.0,0.00019883,2]
[360666501,1746921052482,-655.53,0.00019883,2]
[360666503,1746921052491,-400.0,0.00019883,2]
[360666505,1746921052500,-3125.13,0.00019883,2]
[360666507,1746921052510,-400.0,0.00019883,2]
[360666509,1746921052519,-1520.03,0.00019883,2]
[360666511,1746921052529,-400.0,0.00019883,2]
[360666512,1746921052538,-400.0,0.00019883,2]
[360666514,1746921052548,-400.0,0.00019883,2]
[360666516,1746921052558,-405.16400174,0.00019884,2]
[360666518,1746921052567,-405.56,0.00019884,2]
[360666520,1746921052578,-400.0,0.00019884,2]
[360666522,1746921052587,-400.0,0.00019884,2]
[360666523,1746921052597,-400.0,0.00019884,2]
[360666525,1746921052606,-400.0,0.00019884,2]
[360666527,1746921052616,-400.0,0.00019884,2]
[360666529,1746921052626,-400.0,0.00019884,2]
[360666531,1746921052636,-400.0,0.00019884,2]
[360666533,1746921052646,-400.0,0.00019884,2]
[360666535,1746921052655,-400.0,0.00019884,2]
[360666536,1746921052665,-400.0,0.00019884,2]
[360666538,1746921052675,-400.0,0.00019884,2]
[360666540,1746921052684,-439.95,0.00019884,2]
[360666542,1746921052693,-394.42983191,0.00019884,2]
[360666544,1746921052703,-161.4115648,0.00019884,2]
[360666546,1746921052712,-400.0,0.00019884,2]
[360666548,1746921052721,-400.0,0.00019884,2]
[360666549,1746921052731,-400.0,0.00019884,2]
[360666551,1746921052740,-430.31,0.00019884,2]
[360666553,1746921052750,-400.0,0.00019884,2]
[360666555,1746921052759,-400.0,0.00019884,2]
[360666557,1746921052768,-400.0,0.00019884,2]
[360666559,1746921052778,-400.0,0.00019884,2]
[360666560,1746921052788,-400.0,0.00019884,2]
[360666562,1746921052797,-400.0,0.00019884,2]
[360666564,1746921052807,-400.0,0.00019884,2]
[360666566,1746921052816,-400.0,0.00019884,2]
[360666568,1746921052827,-400.0,0.00019884,2]
[360666570,1746921052836,-400.0,0.00019884,2]
[360666571,1746921052845,-400.0,0.00019884,2]
[360666573,1746921052855,-400.0,0.00019884,2]
[360666575,1746921052864,-400.0,0.00019884,2]
[360666577,1746921052874,-400.0,0.00019884,2]
[360666579,1746921052883,-400.0,0.00019884,2]
[360666580,1746921052893,-400.0,0.00019884,2]
[360666581,1746921052902,-400.0,0.00019884,2]
[360666582,1746921052911,-400.0,0.00019884,2]
[360666583,1746921052920,-400.0,0.00019884,2]
[360666584,1746921052931,-190.76755576,0.00019884,2]
[360666585,1746921052945,-400.0,0.00019884,2]
[360666586,1746921052955,-400.0,0.00019884,2]
[360666587,1746921052964,-1598.7898,0.00019886,2]
[360666588,1746921052973,-158.5271136,0.00019886,2]
[360666589,1746921052983,-150.0,0.00019886,2]
[360666590,1746921052992,-400.0,0.00019886,2]
[360666591,1746921053001,-400.0,0.00019886,2]
[360666592,1746921053011,-400.0,0.00019886,2]